[Event "Titled Tuesday Blitz April 25 Late 2023"]
[White "Larino Nieto, David"]
[Black "Omelja, Artem"]
[WhiteFideId "2256444"]
[BlackFideId "14119846"]
[WhiteElo "2506"]
[BlackElo "2404"]
[Result "1-0"]
[Round "06"]
[TimeControl "180+2"]
[Date "2023.04.25"]
[WhiteClock "0:00:06"]
[BlackClock "0:00:03"]

1. a3 {[%clk 0:02:54]}  d5 {[%clk 0:02:57]} 2. b3 {[%clk 0:02:55]}  e5 {[%clk 0:02:56]} 3. c3 {[%clk 0:02:56]}  Bd6 {[%clk 0:02:57]} 4. d3 {[%clk 0:02:57]}  Ne7 {[%clk 0:02:41]} 5. e3 {[%clk 0:02:56]}  O-O {[%clk 0:02:41]} 6. f3 {[%clk 0:02:56]}  f5 {[%clk 0:02:41]} 7. Ra2 {[%clk 0:02:57]}  d4 {[%clk 0:02:33]} 8. g3 {[%clk 0:02:50]}  Nd5 {[%clk 0:02:29]} 9. cxd4 {[%clk 0:02:43]}  exd4 {[%clk 0:02:28]} 10. e4 {[%clk 0:02:43]}  fxe4 {[%clk 0:02:28]} 11. dxe4 {[%clk 0:02:43]}  Ne3 {[%clk 0:02:25]} 12. Bxe3 {[%clk 0:02:41]}  dxe3 {[%clk 0:02:26]} 13. Bg2 {[%clk 0:02:11]}  Bc5 {[%clk 0:01:22]} 14. Qc2 {[%clk 0:01:48]}  Qe7 {[%clk 0:00:55]} 15. Ne2 {[%clk 0:01:44]}  Be6 {[%clk 0:00:55]} 16. O-O {[%clk 0:01:41]}  Nc6 {[%clk 0:00:54]} 17. Nbc3 {[%clk 0:01:32]}  Nd4 {[%clk 0:00:51]} 18. Nxd4 {[%clk 0:01:20]}  Bxd4 {[%clk 0:00:52]} 19. Ne2 {[%clk 0:01:20]}  Bb6 {[%clk 0:00:52]} 20. Raa1 {[%clk 0:01:10]}  Rad8 {[%clk 0:00:49]} 21. Rfd1 {[%clk 0:01:10]}  Rxd1+ {[%clk 0:00:49]} 22. Rxd1 {[%clk 0:00:47]}  Qxa3 {[%clk 0:00:47]} 23. Rd3 {[%clk 0:00:45]}  Qb4 {[%clk 0:00:20]} 24. Qd1 {[%clk 0:00:39]}  a5 {[%clk 0:00:17]} 25. f4 {[%clk 0:00:33]}  Bg4 {[%clk 0:00:14]} 26. h3 {[%clk 0:00:32]}  Bxe2 {[%clk 0:00:13]} 27. Qxe2 {[%clk 0:00:33]}  a4 {[%clk 0:00:09]} 28. bxa4 {[%clk 0:00:32]}  Qxa4 {[%clk 0:00:10]} 29. Kh2 {[%clk 0:00:29]}  Ra8 {[%clk 0:00:09]} 30. e5 {[%clk 0:00:29]}  Kf8 {[%clk 0:00:07]} 31. Qh5 {[%clk 0:00:24]}  Qb5 {[%clk 0:00:03]} 32. Qf5+ {[%clk 0:00:19]}  Kg8 {[%clk 0:00:04]} 33. Qe4 {[%clk 0:00:10]}  Rf8 {[%clk 0:00:03]} 34. h4 {[%clk 0:00:09]}  Kh8 {[%clk 0:00:03]} 35. e6 {[%clk 0:00:10]}  Re8 {[%clk 0:00:03]} 36. f5 {[%clk 0:00:09]}  h6 {[%clk 0:00:02]} 37. Bf3 {[%clk 0:00:10]}  Qb2+ {[%clk 0:00:01]} 38. Kh3 {[%clk 0:00:11]}  Qf6 {[%clk 0:00:02]} 39. Rd7 {[%clk 0:00:08]}  Re7 {[%clk 0:00:01]} 40. Rd8+ {[%clk 0:00:08]}  Kh7 {[%clk 0:00:02]} 41. h5 {[%clk 0:00:06]}  Qg5 {[%clk 0:00:02]} 42. f6+ {[%clk 0:00:06]}  g6 {[%clk 0:00:02]} 43. Qxg6+ {[%clk 0:00:04]}  Qxg6 {[%clk 0:00:03]} 44. hxg6+ {[%clk 0:00:05]}  Kxg6 {[%clk 0:00:03]} 45. fxe7 {[%clk 0:00:06]} 1-0


[Site "https://www.chess.com"]

[Event "Titled Tuesday Blitz April 25 Late 2023"]
[White "Erzhanov, Arman"]
[Black "Djokic, Mihailo"]
[WhiteFideId "4138821"]
[BlackFideId "976440"]
[WhiteElo "2138"]
[BlackElo "2294"]
[Result "1-0"]
[Round "06"]
[TimeControl "180+2"]
[Date "2023.04.25"]
[WhiteClock "0:01:07"]
[BlackClock "0:01:22"]

1. e4 {[%clk 0:02:57]}  c5 {[%clk 0:02:59]} 2. Nf3 {[%clk 0:02:57]}  d6 {[%clk 0:02:59]} 3. Bb5+ {[%clk 0:02:56]}  Bd7 {[%clk 0:02:59]} 4. Bxd7+ {[%clk 0:02:56]}  Qxd7 {[%clk 0:02:59]} 5. O-O {[%clk 0:02:56]}  Nc6 {[%clk 0:02:59]} 6. c3 {[%clk 0:02:57]}  Nf6 {[%clk 0:02:59]} 7. Re1 {[%clk 0:02:55]}  e6 {[%clk 0:02:59]} 8. d4 {[%clk 0:02:53]}  cxd4 {[%clk 0:03:00]} 9. cxd4 {[%clk 0:02:54]}  d5 {[%clk 0:03:00]} 10. e5 {[%clk 0:02:55]}  Ne4 {[%clk 0:03:01]} 11. Nbd2 {[%clk 0:02:55]}  Nxd2 {[%clk 0:03:01]} 12. Bxd2 {[%clk 0:02:56]}  Bb4 {[%clk 0:03:02]} 13. Rc1 {[%clk 0:02:43]}  Bxd2 {[%clk 0:03:01]} 14. Qxd2 {[%clk 0:02:43]}  h6 {[%clk 0:03:02]} 15. h4 {[%clk 0:02:39]}  O-O {[%clk 0:03:01]} 16. Nh2 {[%clk 0:02:40]}  Qe7 {[%clk 0:02:59]} 17. Qf4 {[%clk 0:02:38]}  f6 {[%clk 0:02:58]} 18. exf6 {[%clk 0:02:35]}  Rxf6 {[%clk 0:02:58]} 19. Qd2 {[%clk 0:02:33]}  Raf8 {[%clk 0:02:56]} 20. Nf3 {[%clk 0:02:32]}  Rxf3 {[%clk 0:02:54]} 21. gxf3 {[%clk 0:02:32]}  Qxh4 {[%clk 0:02:55]} 22. Rxc6 {[%clk 0:02:15]}  bxc6 {[%clk 0:02:54]} 23. Rxe6 {[%clk 0:02:16]}  Rxf3 {[%clk 0:02:51]} 24. Rxc6 {[%clk 0:02:05]}  Rf5 {[%clk 0:02:38]} 25. Kf1 {[%clk 0:01:59]}  Qh1+ {[%clk 0:02:16]} 26. Ke2 {[%clk 0:01:58]}  Qf3+ {[%clk 0:02:17]} 27. Ke1 {[%clk 0:01:45]}  Rf4 {[%clk 0:02:17]} 28. Rc8+ {[%clk 0:01:36]}  Kh7 {[%clk 0:02:16]} 29. Rc3 {[%clk 0:01:36]}  Re4+ {[%clk 0:02:15]} 30. Re3 {[%clk 0:01:37]}  h5 {[%clk 0:02:05]} 31. Qe2 {[%clk 0:01:29]}  Rxe3 {[%clk 0:02:01]} 32. Qxe3 {[%clk 0:01:25]}  Qxe3+ {[%clk 0:02:00]} 33. fxe3 {[%clk 0:01:26]}  Kg6 {[%clk 0:02:00]} 34. b4 {[%clk 0:01:24]}  Kf5 {[%clk 0:01:59]} 35. a4 {[%clk 0:01:23]}  a6 {[%clk 0:01:55]} 36. b5 {[%clk 0:01:12]}  axb5 {[%clk 0:01:49]} 37. a5 {[%clk 0:01:08]}  b4 {[%clk 0:01:25]} 38. a6 {[%clk 0:01:08]}  h4 {[%clk 0:01:22]} 39. a7 {[%clk 0:01:07]}  h3 {[%clk 0:01:22]} 40. Kf2 {[%clk 0:01:07]}  b3 {[%clk 0:01:22]} 41. a8=Q {[%clk 0:01:07]}  b2 {[%clk 0:01:22]} 42. Qb7 {[%clk 0:01:07]} 1-0


[Site "https://www.chess.com"]

[Event "Titled Tuesday Blitz April 25 Late 2023"]
[White "Kubatko, Ivan"]
[Black "Koellner, Ruben Gideon"]
[WhiteFideId "24111473"]
[BlackFideId "12993093"]
[WhiteElo "2285"]
[BlackElo "2314"]
[Result "1-0"]
[Round "06"]
[TimeControl "180+2"]
[Date "2023.04.25"]
[WhiteClock "0:00:15"]
[BlackClock "0:00:02"]

1. e4 {[%clk 0:03:00]}  d6 {[%clk 0:03:00]} 2. d4 {[%clk 0:03:00]}  Nf6 {[%clk 0:03:01]} 3. Nc3 {[%clk 0:03:00]}  e5 {[%clk 0:03:02]} 4. Nf3 {[%clk 0:03:00]}  Nbd7 {[%clk 0:03:02]} 5. g3 {[%clk 0:02:59]}  c6 {[%clk 0:03:02]} 6. Bg2 {[%clk 0:02:59]}  b5 {[%clk 0:03:02]} 7. a3 {[%clk 0:02:57]}  a5 {[%clk 0:03:02]} 8. O-O {[%clk 0:02:56]}  Ba6 {[%clk 0:03:02]} 9. Re1 {[%clk 0:02:55]}  Be7 {[%clk 0:02:59]} 10. h3 {[%clk 0:02:45]}  O-O {[%clk 0:02:59]} 11. Nh4 {[%clk 0:02:38]}  g6 {[%clk 0:02:46]} 12. Bh6 {[%clk 0:02:34]}  Re8 {[%clk 0:02:46]} 13. Qd2 {[%clk 0:01:42]}  Qc7 {[%clk 0:02:29]} 14. Rad1 {[%clk 0:01:41]}  b4 {[%clk 0:02:27]} 15. axb4 {[%clk 0:01:41]}  axb4 {[%clk 0:02:28]} 16. Nb1 {[%clk 0:01:38]}  c5 {[%clk 0:02:27]} 17. c3 {[%clk 0:01:20]}  b3 {[%clk 0:02:13]} 18. f4 {[%clk 0:01:02]}  Nh5 {[%clk 0:02:08]} 19. Qf2 {[%clk 0:00:54]}  Nb6 {[%clk 0:01:15]} 20. d5 {[%clk 0:00:44]}  Nc4 {[%clk 0:01:07]} 21. f5 {[%clk 0:00:39]}  Bb5 {[%clk 0:00:51]} 22. Bc1 {[%clk 0:00:33]}  Ra2 {[%clk 0:00:38]} 23. Nf3 {[%clk 0:00:31]}  Bd8 {[%clk 0:00:22]} 24. Bf1 {[%clk 0:00:31]}  Qb6 {[%clk 0:00:09]} 25. Bd3 {[%clk 0:00:19]}  Qa5 {[%clk 0:00:06]} 26. Nh2 {[%clk 0:00:17]}  Bb6 {[%clk 0:00:05]} 27. Ng4 {[%clk 0:00:16]}  Nxb2 {[%clk 0:00:03]} 28. Bxb2 {[%clk 0:00:14]}  Bxd3 {[%clk 0:00:02]} 29. Rxd3 {[%clk 0:00:15]}  c4 {[%clk 0:00:02]} 30. Rde3 {[%clk 0:00:15]} 1-0


[Site "https://www.chess.com"]

[Event "Titled Tuesday Blitz April 25 Late 2023"]
[White "Filgueira, Hernan"]
[Black "Lopez Gracia, Fernando"]
[WhiteFideId "101770"]
[BlackFideId "2207184"]
[WhiteElo "2363"]
[BlackElo "2255"]
[Result "1-0"]
[Round "06"]
[TimeControl "180+2"]
[Date "2023.04.25"]
[WhiteClock "0:01:09"]
[BlackClock "0:01:10"]

1. c4 {[%clk 0:02:58]}  e6 {[%clk 0:02:59]} 2. Nc3 {[%clk 0:02:57]}  d5 {[%clk 0:02:59]} 3. d4 {[%clk 0:02:57]}  Nf6 {[%clk 0:02:58]} 4. Bg5 {[%clk 0:02:56]}  Be7 {[%clk 0:02:57]} 5. e3 {[%clk 0:02:56]}  Nbd7 {[%clk 0:02:57]} 6. Nf3 {[%clk 0:02:54]}  c6 {[%clk 0:02:58]} 7. Rc1 {[%clk 0:02:52]}  h6 {[%clk 0:02:58]} 8. Bf4 {[%clk 0:02:52]}  O-O {[%clk 0:02:58]} 9. Qc2 {[%clk 0:02:50]}  Nh5 {[%clk 0:02:57]} 10. Bd3 {[%clk 0:02:45]}  Nxf4 {[%clk 0:02:54]} 11. exf4 {[%clk 0:02:45]}  b6 {[%clk 0:02:48]} 12. cxd5 {[%clk 0:02:35]}  cxd5 {[%clk 0:02:46]} 13. O-O {[%clk 0:02:35]}  Bb7 {[%clk 0:02:46]} 14. f5 {[%clk 0:02:35]}  exf5 {[%clk 0:02:41]} 15. Bxf5 {[%clk 0:02:34]}  Nf6 {[%clk 0:02:40]} 16. Ne5 {[%clk 0:02:33]}  Bd6 {[%clk 0:02:36]} 17. Rfe1 {[%clk 0:02:30]}  Re8 {[%clk 0:02:33]} 18. Nb5 {[%clk 0:02:19]}  Ne4 {[%clk 0:01:34]} 19. f3 {[%clk 0:02:03]}  Nc5 {[%clk 0:01:30]} 20. Nxd6 {[%clk 0:01:45]}  Qxd6 {[%clk 0:01:22]} 21. dxc5 {[%clk 0:01:44]}  bxc5 {[%clk 0:01:21]} 22. Qxc5 {[%clk 0:01:30]}  Qxc5+ {[%clk 0:01:18]} 23. Rxc5 {[%clk 0:01:29]}  Ba6 {[%clk 0:01:19]} 24. Kf2 {[%clk 0:01:27]}  Rab8 {[%clk 0:01:18]} 25. b3 {[%clk 0:01:26]}  d4 {[%clk 0:01:16]} 26. Rd5 {[%clk 0:01:15]}  f6 {[%clk 0:01:10]} 27. Nd3 {[%clk 0:01:09]} 1-0


[Site "https://www.chess.com"]

[Event "Titled Tuesday Blitz April 25 Late 2023"]
[White "Espinosa, Pedro"]
[Black "Prydun, Andriy"]
[WhiteFideId "30921066"]
[BlackFideId "14145898"]
[WhiteElo "2016"]
[BlackElo "2164"]
[Result "1-0"]
[Round "06"]
[TimeControl "180+2"]
[Date "2023.04.25"]
[WhiteClock "0:00:09"]
[BlackClock "0:00:01"]

1. d4 {[%clk 0:03:00]}  Nf6 {[%clk 0:02:28]} 2. c4 {[%clk 0:02:59]}  c6 {[%clk 0:02:29]} 3. Nc3 {[%clk 0:02:58]}  d5 {[%clk 0:02:29]} 4. cxd5 {[%clk 0:02:58]}  cxd5 {[%clk 0:02:30]} 5. Bf4 {[%clk 0:02:57]}  Nc6 {[%clk 0:02:30]} 6. e3 {[%clk 0:02:57]}  Bf5 {[%clk 0:02:30]} 7. Be2 {[%clk 0:02:57]}  h6 {[%clk 0:02:28]} 8. Nf3 {[%clk 0:02:48]}  Rc8 {[%clk 0:02:26]} 9. O-O {[%clk 0:02:27]}  e6 {[%clk 0:01:12]} 10. Qb3 {[%clk 0:02:26]}  Na5 {[%clk 0:00:34]} 11. Qa4+ {[%clk 0:02:17]}  Nc6 {[%clk 0:00:33]} 12. Bb5 {[%clk 0:01:48]}  Qb6 {[%clk 0:00:25]} 13. Ne5 {[%clk 0:01:29]}  Be7 {[%clk 0:00:25]} 14. Qb3 {[%clk 0:01:12]}  O-O {[%clk 0:00:22]} 15. Na4 {[%clk 0:01:12]}  Qd8 {[%clk 0:00:19]} 16. Nxc6 {[%clk 0:01:11]}  bxc6 {[%clk 0:00:11]} 17. Ba6 {[%clk 0:01:11]}  Nh5 {[%clk 0:00:08]} 18. Bxc8 {[%clk 0:01:10]}  Nxf4 {[%clk 0:00:07]} 19. exf4 {[%clk 0:01:10]}  Qxc8 {[%clk 0:00:07]} 20. Rac1 {[%clk 0:01:10]}  Bf6 {[%clk 0:00:06]} 21. Qc3 {[%clk 0:01:07]}  Qb8 {[%clk 0:00:06]} 22. g3 {[%clk 0:00:56]}  Rc8 {[%clk 0:00:06]} 23. Nc5 {[%clk 0:00:52]}  h5 {[%clk 0:00:06]} 24. Nd7 {[%clk 0:00:49]}  Qd6 {[%clk 0:00:04]} 25. Nxf6+ {[%clk 0:00:49]}  gxf6 {[%clk 0:00:04]} 26. Qc5 {[%clk 0:00:48]}  Qd7 {[%clk 0:00:04]} 27. b4 {[%clk 0:00:47]}  a6 {[%clk 0:00:03]} 28. h4 {[%clk 0:00:47]}  Kh7 {[%clk 0:00:03]} 29. Kh2 {[%clk 0:00:45]}  Be4 {[%clk 0:00:03]} 30. a4 {[%clk 0:00:40]}  Bd3 {[%clk 0:00:02]} 31. Rfd1 {[%clk 0:00:39]}  Bc4 {[%clk 0:00:03]} 32. Rxc4 {[%clk 0:00:29]}  dxc4 {[%clk 0:00:02]} 33. Qxc4 {[%clk 0:00:30]}  Qd5 {[%clk 0:00:02]} 34. Rc1 {[%clk 0:00:25]}  Rd8 {[%clk 0:00:03]} 35. Qxd5 {[%clk 0:00:23]}  Rxd5 {[%clk 0:00:03]} 36. Rxc6 {[%clk 0:00:19]}  Rxd4 {[%clk 0:00:03]} 37. Rxa6 {[%clk 0:00:19]}  Rxb4 {[%clk 0:00:03]} 38. Ra5 {[%clk 0:00:20]}  Kg6 {[%clk 0:00:03]} 39. Kg2 {[%clk 0:00:20]}  Rb3 {[%clk 0:00:03]} 40. Ra8 {[%clk 0:00:20]}  Ra3 {[%clk 0:00:03]} 41. a5 {[%clk 0:00:21]}  Kf5 {[%clk 0:00:03]} 42. Rh8 {[%clk 0:00:19]}  Kg4 {[%clk 0:00:02]} 43. Rg8+ {[%clk 0:00:20]}  Kf5 {[%clk 0:00:02]} 44. Ra8 {[%clk 0:00:19]}  Ke4 {[%clk 0:00:02]} 45. a6 {[%clk 0:00:18]}  e5 {[%clk 0:00:03]} 46. fxe5 {[%clk 0:00:17]}  fxe5 {[%clk 0:00:03]} 47. a7 {[%clk 0:00:17]}  f5 {[%clk 0:00:04]} 48. f3+ {[%clk 0:00:10]}  Ke3 {[%clk 0:00:04]} 49. Re8 {[%clk 0:00:11]}  Ra2+ {[%clk 0:00:04]} 50. Kh3 {[%clk 0:00:10]}  Rxa7 {[%clk 0:00:03]} 51. Rxe5+ {[%clk 0:00:10]}  Kxf3 {[%clk 0:00:02]} 52. Rxf5+ {[%clk 0:00:11]}  Ke4 {[%clk 0:00:02]} 53. Rxh5 {[%clk 0:00:12]}  Rg7 {[%clk 0:00:03]} 54. Rh6 {[%clk 0:00:11]}  Kf5 {[%clk 0:00:02]} 55. Ra6 {[%clk 0:00:10]}  Rd7 {[%clk 0:00:02]} 56. Ra5+ {[%clk 0:00:10]}  Kg6 {[%clk 0:00:02]} 57. Ra4 {[%clk 0:00:10]}  Kh5 {[%clk 0:00:02]} 58. Ra5+ {[%clk 0:00:10]}  Kg6 {[%clk 0:00:02]} 59. g4 {[%clk 0:00:10]}  Rd3+ {[%clk 0:00:03]} 60. Kg2 {[%clk 0:00:10]}  Rc3 {[%clk 0:00:03]} 61. Kf2 {[%clk 0:00:10]}  Rb3 {[%clk 0:00:03]} 62. Re5 {[%clk 0:00:10]}  Kf6 {[%clk 0:00:03]} 63. Rf5+ {[%clk 0:00:09]}  Kg6 {[%clk 0:00:03]} 64. Rf3 {[%clk 0:00:10]}  Rb4 {[%clk 0:00:03]} 65. Kg3 {[%clk 0:00:10]}  Rc4 {[%clk 0:00:03]} 66. h5+ {[%clk 0:00:10]}  Kg5 {[%clk 0:00:04]} 67. Rf5+ {[%clk 0:00:10]}  Kh6 {[%clk 0:00:04]} 68. Kh4 {[%clk 0:00:11]}  Rb4 {[%clk 0:00:04]} 69. Rf6+ {[%clk 0:00:11]}  Kg7 {[%clk 0:00:04]} 70. Ra6 {[%clk 0:00:12]}  Rc4 {[%clk 0:00:04]} 71. h6+ {[%clk 0:00:10]}  Kh7 {[%clk 0:00:04]} 72. Kh5 {[%clk 0:00:11]}  Kg8 {[%clk 0:00:03]} 73. g5 {[%clk 0:00:11]}  Rc7 {[%clk 0:00:02]} 74. Ra8+ {[%clk 0:00:11]}  Kf7 {[%clk 0:00:02]} 75. g6+ {[%clk 0:00:10]}  Kf6 {[%clk 0:00:02]} 76. Rf8+ {[%clk 0:00:10]}  Ke5 {[%clk 0:00:01]} 77. g7 {[%clk 0:00:10]}  Rc5 {[%clk 0:00:01]} 78. Kg6 {[%clk 0:00:10]}  Kd6 {[%clk 0:00:01]} 79. Rf6+ {[%clk 0:00:09]}  Ke7 {[%clk 0:00:01]} 80. Rf7+ {[%clk 0:00:10]}  Ke6 {[%clk 0:00:01]} 81. g8=Q {[%clk 0:00:09]}  Rg5+ {[%clk 0:00:01]} 82. Kxg5 {[%clk 0:00:09]} 1-0


[Site "https://www.chess.com"]

[Event "Titled Tuesday Blitz April 25 Late 2023"]
[White "Silva, Miguel Antonio Neto"]
[Black "Leenhouts, Koen"]
[WhiteFideId "1911929"]
[BlackFideId "1008439"]
[WhiteElo "2223"]
[BlackElo "2409"]
[Result "1-0"]
[Round "06"]
[TimeControl "180+2"]
[Date "2023.04.25"]
[WhiteClock "0:00:19"]
[BlackClock "0:00:09"]

1. Nf3 {[%clk 0:03:00]}  Nf6 {[%clk 0:02:59]} 2. g3 {[%clk 0:02:58]}  g6 {[%clk 0:03:00]} 3. Bg2 {[%clk 0:02:57]}  Bg7 {[%clk 0:03:01]} 4. O-O {[%clk 0:02:57]}  O-O {[%clk 0:03:01]} 5. d3 {[%clk 0:02:57]}  d5 {[%clk 0:03:01]} 6. Nbd2 {[%clk 0:02:54]}  Nc6 {[%clk 0:03:02]} 7. c3 {[%clk 0:02:51]}  Bg4 {[%clk 0:03:00]} 8. Qc2 {[%clk 0:02:50]}  Qd7 {[%clk 0:03:00]} 9. e4 {[%clk 0:02:50]}  Bh3 {[%clk 0:02:58]} 10. e5 {[%clk 0:02:48]}  Ne8 {[%clk 0:02:45]} 11. d4 {[%clk 0:02:46]}  Bxg2 {[%clk 0:02:44]} 12. Kxg2 {[%clk 0:02:47]}  Nd8 {[%clk 0:02:42]} 13. Re1 {[%clk 0:02:45]}  c5 {[%clk 0:02:41]} 14. Nf1 {[%clk 0:02:44]}  Rc8 {[%clk 0:02:41]} 15. Qe2 {[%clk 0:02:40]}  cxd4 {[%clk 0:02:34]} 16. cxd4 {[%clk 0:02:39]}  Nc7 {[%clk 0:02:35]} 17. Be3 {[%clk 0:02:33]}  Nce6 {[%clk 0:02:35]} 18. Rac1 {[%clk 0:02:32]}  Nc6 {[%clk 0:02:36]} 19. h4 {[%clk 0:02:30]}  Na5 {[%clk 0:02:32]} 20. b3 {[%clk 0:02:29]}  Rxc1 {[%clk 0:02:30]} 21. Rxc1 {[%clk 0:02:28]}  Rc8 {[%clk 0:02:31]} 22. Qd2 {[%clk 0:02:27]}  Rxc1 {[%clk 0:02:26]} 23. Qxc1 {[%clk 0:02:26]}  Qc7 {[%clk 0:02:27]} 24. Qxc7 {[%clk 0:02:10]}  Nxc7 {[%clk 0:02:28]} 25. Ne1 {[%clk 0:02:08]}  e6 {[%clk 0:02:25]} 26. Nc2 {[%clk 0:02:07]}  Bf8 {[%clk 0:02:25]} 27. Kf3 {[%clk 0:02:06]}  Nc6 {[%clk 0:02:22]} 28. Ke2 {[%clk 0:02:05]}  b5 {[%clk 0:02:13]} 29. a3 {[%clk 0:02:00]}  a5 {[%clk 0:02:11]} 30. Kd3 {[%clk 0:01:58]}  a4 {[%clk 0:02:06]} 31. Nd2 {[%clk 0:01:54]}  Na5 {[%clk 0:01:56]} 32. Kc3 {[%clk 0:01:38]}  axb3 {[%clk 0:01:40]} 33. Nxb3 {[%clk 0:01:37]}  Nc4 {[%clk 0:01:40]} 34. Nc5 {[%clk 0:01:26]}  Bxc5 {[%clk 0:01:28]} 35. dxc5 {[%clk 0:01:26]}  Nxe5 {[%clk 0:01:28]} 36. Bf4 {[%clk 0:01:17]}  f6 {[%clk 0:01:24]} 37. Bxe5 {[%clk 0:01:12]}  fxe5 {[%clk 0:01:23]} 38. Kb4 {[%clk 0:01:13]}  d4 {[%clk 0:01:18]} 39. Ka5 {[%clk 0:01:12]}  Kf7 {[%clk 0:01:06]} 40. Kb6 {[%clk 0:01:11]}  d3 {[%clk 0:01:03]} 41. Ne3 {[%clk 0:00:55]}  Nd5+ {[%clk 0:01:03]} 42. Nxd5 {[%clk 0:00:54]}  exd5 {[%clk 0:01:03]} 43. c6 {[%clk 0:00:54]}  d2 {[%clk 0:01:03]} 44. c7 {[%clk 0:00:55]}  d1=Q {[%clk 0:01:03]} 45. c8=Q {[%clk 0:00:56]}  Qd4+ {[%clk 0:00:47]} 46. Kxb5 {[%clk 0:00:55]}  Qd3+ {[%clk 0:00:41]} 47. Kb4 {[%clk 0:00:48]}  Qd2+ {[%clk 0:00:37]} 48. Kb5 {[%clk 0:00:44]}  Qb2+ {[%clk 0:00:27]} 49. Ka4 {[%clk 0:00:36]}  Qd4+ {[%clk 0:00:26]} 50. Kb5 {[%clk 0:00:34]}  Qxf2 {[%clk 0:00:21]} 51. Qd7+ {[%clk 0:00:31]}  Kf6 {[%clk 0:00:21]} 52. Qxd5 {[%clk 0:00:29]}  Qxg3 {[%clk 0:00:16]} 53. a4 {[%clk 0:00:27]}  Qc3 {[%clk 0:00:07]} 54. Qd8+ {[%clk 0:00:24]}  Kf5 {[%clk 0:00:07]} 55. Qg5+ {[%clk 0:00:23]}  Ke4 {[%clk 0:00:06]} 56. Qg4+ {[%clk 0:00:23]}  Kd3 {[%clk 0:00:05]} 57. Qf3+ {[%clk 0:00:16]}  Kc2 {[%clk 0:00:05]} 58. Qxc3+ {[%clk 0:00:15]}  Kxc3 {[%clk 0:00:06]} 59. a5 {[%clk 0:00:15]}  e4 {[%clk 0:00:07]} 60. a6 {[%clk 0:00:16]}  e3 {[%clk 0:00:07]} 61. a7 {[%clk 0:00:17]}  e2 {[%clk 0:00:08]} 62. a8=Q {[%clk 0:00:18]}  e1=Q {[%clk 0:00:09]} 63. Qa5+ {[%clk 0:00:18]}  Kc2 {[%clk 0:00:09]} 64. Qxe1 {[%clk 0:00:19]} 1-0


[Site "https://www.chess.com"]

[Event "Titled Tuesday Blitz April 25 Late 2023"]
[White "Sztokbant, Bernardo Vainzoff"]
[Black "Prieto Aranguren, Alain"]
[WhiteFideId "2115956"]
[BlackFideId "2268906"]
[WhiteElo "2222"]
[BlackElo "2209"]
[Result "1-0"]
[Round "06"]
[TimeControl "180+2"]
[Date "2023.04.25"]
[WhiteClock "0:00:28"]
[BlackClock "0:00:01"]

1. e4 {[%clk 0:03:00]}  c6 {[%clk 0:02:59]} 2. Nf3 {[%clk 0:03:00]}  d5 {[%clk 0:02:59]} 3. Nc3 {[%clk 0:03:00]}  Bg4 {[%clk 0:02:58]} 4. h3 {[%clk 0:03:00]}  Bh5 {[%clk 0:02:58]} 5. d3 {[%clk 0:03:00]}  e6 {[%clk 0:02:57]} 6. g3 {[%clk 0:03:00]}  Nf6 {[%clk 0:02:57]} 7. Qe2 {[%clk 0:02:59]}  Qa5 {[%clk 0:02:43]} 8. Bd2 {[%clk 0:02:58]}  Qb6 {[%clk 0:02:33]} 9. Bg2 {[%clk 0:02:55]}  d4 {[%clk 0:02:24]} 10. Nd1 {[%clk 0:02:51]}  c5 {[%clk 0:02:21]} 11. O-O {[%clk 0:02:51]}  Nc6 {[%clk 0:02:20]} 12. b3 {[%clk 0:02:50]}  a5 {[%clk 0:02:17]} 13. Nb2 {[%clk 0:02:50]}  Nb4 {[%clk 0:02:17]} 14. Nc4 {[%clk 0:02:49]}  Qc7 {[%clk 0:02:10]} 15. Bf4 {[%clk 0:02:48]}  Qd8 {[%clk 0:02:07]} 16. a3 {[%clk 0:02:40]}  Nc6 {[%clk 0:02:06]} 17. a4 {[%clk 0:02:35]}  Be7 {[%clk 0:02:05]} 18. g4 {[%clk 0:02:34]}  Bg6 {[%clk 0:02:04]} 19. Bg3 {[%clk 0:02:28]}  O-O {[%clk 0:02:02]} 20. Nfd2 {[%clk 0:02:23]}  h5 {[%clk 0:01:55]} 21. f4 {[%clk 0:02:23]}  hxg4 {[%clk 0:01:54]} 22. hxg4 {[%clk 0:02:24]}  Nb4 {[%clk 0:01:43]} 23. Rfc1 {[%clk 0:02:15]}  Rc8 {[%clk 0:01:36]} 24. Bf3 {[%clk 0:02:09]}  Nd7 {[%clk 0:01:23]} 25. e5 {[%clk 0:02:07]}  Nd5 {[%clk 0:01:19]} 26. Ne4 {[%clk 0:01:42]}  Bh4 {[%clk 0:01:06]} 27. Qh2 {[%clk 0:01:28]}  Bxg3 {[%clk 0:01:04]} 28. Qxg3 {[%clk 0:01:29]}  f5 {[%clk 0:00:57]} 29. Ng5 {[%clk 0:01:27]}  Qe7 {[%clk 0:00:43]} 30. Nd6 {[%clk 0:01:17]}  fxg4 {[%clk 0:00:42]} 31. Nxc8 {[%clk 0:00:58]}  Rxc8 {[%clk 0:00:38]} 32. Bxg4 {[%clk 0:00:55]}  Nf8 {[%clk 0:00:27]} 33. Rf1 {[%clk 0:00:54]}  Ne3 {[%clk 0:00:26]} 34. Rf2 {[%clk 0:00:53]}  Bf5 {[%clk 0:00:16]} 35. Bf3 {[%clk 0:00:47]}  Ng6 {[%clk 0:00:14]} 36. Be4 {[%clk 0:00:42]}  b5 {[%clk 0:00:12]} 37. axb5 {[%clk 0:00:42]}  a4 {[%clk 0:00:13]} 38. Rxa4 {[%clk 0:00:40]}  Ng4 {[%clk 0:00:11]} 39. Bxf5 {[%clk 0:00:35]}  exf5 {[%clk 0:00:11]} 40. Re2 {[%clk 0:00:35]}  Nf8 {[%clk 0:00:07]} 41. b6 {[%clk 0:00:34]}  Ne6 {[%clk 0:00:06]} 42. Nxe6 {[%clk 0:00:33]}  Qxe6 {[%clk 0:00:07]} 43. b7 {[%clk 0:00:33]}  Rb8 {[%clk 0:00:07]} 44. Ra8 {[%clk 0:00:32]}  Qe8 {[%clk 0:00:07]} 45. Qf3 {[%clk 0:00:31]}  Kh7 {[%clk 0:00:04]} 46. e6 {[%clk 0:00:29]}  Kg6 {[%clk 0:00:04]} 47. e7 {[%clk 0:00:29]}  Qh8 {[%clk 0:00:02]} 48. Rxb8 {[%clk 0:00:28]}  Qxb8 {[%clk 0:00:01]} 49. e8=Q+ {[%clk 0:00:28]} 1-0


[Site "https://www.chess.com"]